bitfinex/quotes_SOLUSD_20241024
["timestamp","ask_amount","ask_price","bid_price","bid_amount"]
[1729773057465,0.12549,173.86,173.83,28.88754578]
[1729773058385,5.7513,173.88,173.84,28.88754578]
[1729773058695,0.12549,173.87,173.84,28.88754578]
[1729773059580,5.7495,173.93,173.86,28.88754578]
[1729773059780,0.12549,173.92,173.87,28.88754578]
[1729773060082,28.88754578,173.91,173.86,28.88754578]
[1729773060994,34.63784578,173.91,173.86,28.88754578]
[1729773061494,5.7503,173.91,173.86,28.88754578]
[1729773061793,5.7503,173.91,173.87,28.88754578]
[1729773062405,5.7503,173.91,173.86,28.88754578]
[1729773062881,5.7503,173.91,173.87,28.88754578]
[1729773063080,0.12549,173.92,173.87,28.88754578]
[1729773063081,5.7498,173.92,173.87,28.88754578]
[1729773063386,5.7498,173.92,173.88,28.88754578]
[1729773063583,28.88754578,173.94,173.88,28.88754578]
[1729773063769,6.00038,173.93,173.91,28.88754578]
[1729773064093,0.12549,173.92,173.89,28.88754578]
[1729773064896,0.12549,173.92,173.88,28.88754578]
[1729773065391,34.76293578,173.92,173.86,28.88754578]
[1729773066396,5.87539,173.92,173.88,28.88754578]
[1729773067984,5.87529,173.92,173.88,28.88754578]
[1729773068498,5.87529,173.92,173.84,15.2454]
[1729773068499,5.7488,173.95,173.91,28.88754578]
[1729773068696,5.7488,173.95,173.93,28.88754578]
[1729773068905,15.2232,174.03,173.94,28.88754578]
[1729773069079,28.88754578,174.01,173.96,28.88754578]
[1729773069276,0.12549,174.0,173.95,28.88754578]
[1729773069471,5.87289,174.0,173.95,28.88754578]
[1729773069676,5.7474,174.0,173.96,28.88754578]
[1729773069887,5.7468,174.01,173.97,28.88754578]
[1729773070198,5.7465,174.02,173.99,28.88754578]
[1729773070401,28.88754578,174.01,173.96,28.88754578]
[1729773071585,6.12357,174.0,173.96,28.88754578]
[1729773072200,0.12549,173.96,173.86,21.8228]
[1729773072446,0.12549,173.95,173.92,28.88754578]
[1729773072707,5.99808,174.0,173.94,28.88754578]
[1729773072890,5.99808,174.0,173.95,28.88754578]
[1729773073093,5.99808,174.0,173.96,28.88754578]
[1729773073404,0.12549,173.99,173.95,28.88754578]
[1729773073598,0.12549,173.99,173.88,0.2]
[1729773073599,5.87299,173.99,173.94,28.88754578]
[1729773073907,5.87299,173.99,173.93,28.88754578]
[1729773073908,0.25098,173.98,173.93,28.88754578]
[1729773074294,0.25098,173.98,173.94,28.88754578]
[1729773074805,0.25098,173.98,173.95,28.88754578]
[1729773075105,5.99878,173.98,173.94,28.88754578]
[1729773075307,5.99878,173.98,173.93,28.88754578]
[1729773076306,34.88632578,173.98,173.92,28.88754578]
[1729773076515,34.88632578,173.98,173.93,28.88754578]
[1729773078221,6.12427,173.98,173.97,4.6]
[1729773079616,5.87329,173.98,173.97,4.6]
[1729773080204,0.12549,173.98,173.97,4.6]
[1729773081318,5.747,174.01,173.97,33.48754578]
[1729773081616,5.7461,174.03,173.99,28.88754578]
[1729773081818,0.12549,174.01,173.99,28.88754578]
[1729773082118,0.12549,174.01,173.98,28.88754578]
[1729773082425,0.12549,174.01,173.97,4.6]
[1729773082426,0.12549,174.01,173.99,28.88754578]
[1729773082918,20.37647,174.03,173.99,28.88754578]
[1729773083215,0.37647,174.03,173.99,28.88754578]
[1729773083411,0.12549,174.03,173.99,28.88754578]
[1729773083618,25.7458,174.04,173.99,28.88754578]
[1729773084116,28.88754578,174.03,173.98,28.88754578]
[1729773084309,29.01303578,174.01,173.97,4.6]
[1729773084514,29.01303578,173.98,173.97,4.6]
[1729773084716,0.12549,173.98,173.97,4.6]
[1729773085309,29.01303578,173.98,173.97,4.6]
[1729773085795,5.87319,173.98,173.97,4.6]
[1729773085994,28.88754578,174.01,173.97,4.6]
[1729773086196,28.88754578,174.02,173.97,33.48754578]
[1729773086419,0.37647,174.01,173.97,33.48754578]
[1729773086716,0.12549,174.01,173.98,28.88754578]
[1729773086903,0.12549,174.01,173.97,33.48754578]
[1729773087108,29.01303578,174.01,173.97,4.6]
[1729773087721,34.76003578,174.01,173.97,4.6]
[1729773088916,5.87249,174.01,173.97,4.6]
[1729773090517,34.76003578,174.01,173.97,4.6]
[1729773091514,29.26401578,174.0,173.97,4.6]
[1729773091724,28.88754578,173.98,173.97,4.6]
[1729773091911,29.26401578,174.0,173.97,4.6]
[1729773092111,0.12549,174.0,173.97,4.6]
[1729773093207,5.87279,174.0,173.97,4.6]
[1729773093720,34.76033578,174.0,173.97,4.6]
[1729773096734,5.87279,174.0,173.97,33.48754578]
[1729773098800,5.87279,174.0,173.97,4.6]
[1729773104603,5.87279,174.0,173.97,33.48754578]
[1729773105219,5.87279,174.0,173.97,28.88754578]
[1729773105529,28.88754578,174.05,173.99,28.88754578]
[1729773105836,14.3632,174.06,174.01,28.88754578]
[1729773105837,11.16909552,174.04,174.01,28.88754578]
[1729773106012,4.29580597,174.03,174.01,28.88754578]
[1729773106335,5.87089,174.05,174.01,18.45969932]
[1729773106540,0.12549,174.03,174.01,18.45969932]
[1729773106732,0.12549,174.03,173.99,18.45969932]
[1729773106918,18.45969932,174.02,173.97,18.45969932]
[1729773107313,5.7466,174.02,173.98,18.45969932]
[1729773107924,5.7466,174.02,173.99,18.45969932]
[1729773108328,5.7466,174.02,173.98,18.45969932]
[1729773109533,24.20629932,174.02,173.97,18.45969932]
[1729773110638,5.7466,174.02,173.98,18.45969932]
[1729773113542,5.7466,174.02,173.99,18.45969932]
[1729773115639,5.7466,174.02,174.0,18.45969932]
[1729773116438,5.7451,174.06,174.01,18.45969932]
[1729773116745,34.52,174.18,173.94,21.7981]
[1729773116746,4.305273,174.05,174.0,73.83879728]
[1729773116921,5.7438,174.1,174.0,73.83879728]
[1729773117122,4.42978164,174.09,174.06,18.45969932]
[1729773117349,4.30429164,174.08,174.06,18.45969932]
[1729773117541,4.30429164,174.07,174.06,18.45969932]
[1729773117949,0.12549,174.09,174.06,18.45969932]
[1729773118130,6.12027,174.1,174.07,18.45969932]
[1729773118329,0.12549,174.08,174.06,18.45969932]
[1729773119533,15.3454,174.11,174.07,18.45969932]
[1729773119731,4.29753972,174.1,174.07,18.45969932]
[1729773119953,21.0889,174.11,174.07,18.45969932]
[1729773120249,5.7428,174.13,174.09,18.45969932]
[1729773120436,5.7428,174.13,174.08,18.45969932]
[1729773120437,4.29753356,174.12,174.08,18.45969932]
[1729773120635,4.42302356,174.11,174.09,18.45969932]
[1729773120838,5.7428,174.13,174.09,18.45969932]
[1729773121030,4.29749187,174.12,174.09,18.45969932]
[1729773121231,4.29749118,174.11,174.09,18.45969932]
[1729773121435,24.20179932,174.15,174.1,18.45969932]
[1729773121734,0.12549,174.13,174.09,18.45969932]
[1729773121942,18.45969932,174.14,174.09,18.45969932]
[1729773122243,24.20179932,174.15,174.1,18.45969932]
[1729773122428,4.41712626,174.14,174.1,18.45969932]
[1729773122633,0.12549,174.15,174.1,18.45969932]
[1729773122837,5.7411,174.18,174.13,18.45969932]
[1729773123032,15.5743,174.25,174.14,16.3228]
[1729773123236,4.28394427,174.24,174.23,18.45969932]
[1729773123435,3.00738577,174.28,174.23,18.45969932]
[1729773123734,4.28282492,174.27,174.25,18.45969932]
[1729773123945,3.00738577,174.28,174.25,18.45969932]
[1729773124337,28.76880772,174.27,174.22,28.76880772]
[1729773124530,28.76880772,174.27,174.21,28.76880772]
[1729773124744,0.12549,174.25,174.21,28.76880772]
[1729773125153,0.12549,174.25,174.17,20.0]
[1729773125353,28.76880772,174.25,174.2,28.76880772]
[1729773125532,34.50730772,174.26,174.21,28.76880772]
[1729773125732,21.9899,174.31,174.24,28.76880772]
[1729773125733,5.7382,174.27,174.24,28.76880772]
[1729773126230,0.12549,174.28,174.24,28.76880772]
[1729773126534,5.7377,174.29,174.25,28.76880772]
[1729773126955,5.7373,174.3,174.25,28.76880772]
[1729773128132,5.7373,174.3,174.26,28.76880772]
[1729773130261,5.7373,174.3,174.27,28.76880772]
[1729773130834,28.89429772,174.28,174.22,28.76880772]
[1729773131053,0.12549,174.25,174.21,28.76880772]
[1729773131557,0.12549,174.25,174.16,6.6609]
[1729773131558,0.25098,174.28,174.23,28.76880772]
[1729773131858,21.9899,174.31,174.26,28.76880772]
[1729773132071,50.75870772,174.31,174.26,28.76880772]
[1729773132254,28.89429772,174.3,174.25,28.76880772]
[1729773132964,5.86289,174.3,174.26,28.76880772]
[1729773133546,34.63169772,174.3,174.25,28.76880772]
[1729773134255,28.89429772,174.28,174.23,28.76880772]
[1729773135133,5.7382,174.27,174.23,28.76880772]
[1729773136654,5.7382,174.27,174.22,28.76880772]
[1729773137248,28.76880772,174.25,174.2,28.76880772]
[1729773137444,0.12549,174.21,174.16,28.76880772]
[1729773137760,0.12549,174.21,174.17,28.76880772]
[1729773138064,0.12549,174.21,174.16,28.76880772]
[1729773138250,28.89429772,174.21,174.16,28.76880772]
[1729773138758,34.63449772,174.21,174.16,28.76880772]
[1729773138939,14.38440386,174.18,174.13,28.76880772]
[1729773139140,28.76880772,174.18,174.13,28.76880772]
[1729773139356,28.89429772,174.19,174.13,28.76880772]
[1729773140155,34.63589772,174.17,174.12,28.76880772]
[1729773140864,28.76880772,174.16,174.11,28.76880772]
[1729773141159,5.86709,174.17,174.12,28.76880772]
[1729773141345,5.86709,174.17,174.13,28.76880772]
[1729773141550,34.50960772,174.2,174.15,28.76880772]
[1729773141948,0.12549,174.19,174.15,28.76880772]
[1729773142143,0.12549,174.19,174.14,28.76880772]
[1729773142544,5.36649,174.19,174.14,28.76880772]
[1729773142745,34.13529772,174.19,174.14,28.76880772]
[1729773142945,5.36649,174.19,174.14,28.76880772]
[1729773143265,5.36649,174.19,174.15,28.76880772]
[1729773143871,5.36649,174.19,174.14,28.76880772]
[1729773145144,34.13529772,174.19,174.13,28.76880772]
[1729773145665,28.76880772,174.18,174.13,28.76880772]
[1729773145972,28.76880772,174.16,174.11,28.76880772]
[1729773146263,28.76880772,174.17,174.11,28.76880772]
[1729773147171,5.7415,174.18,174.08,0.1]
[1729773147172,28.76880772,174.13,174.08,28.76880772]
[1729773147671,28.76880772,174.14,174.09,28.76880772]
[1729773148555,34.51120772,174.15,174.09,28.76880772]
[1729773149065,28.76880772,174.13,174.08,28.76880772]
[1729773149266,14.38440386,174.12,174.08,14.38440386]
[1729773149479,28.76880772,174.12,174.07,28.76880772]
[1729773149963,28.76880772,174.12,174.03,6.1643]
[1729773149964,28.76880772,174.13,174.08,28.76880772]
[1729773150168,5.2425,174.14,174.09,28.76880772]
[1729773150361,34.01130772,174.14,174.09,28.76880772]
[1729773151866,28.76880772,174.13,174.08,28.76880772]
[1729773152161,28.76880772,174.12,174.07,28.76880772]
[1729773152370,28.76880772,174.12,174.01,16.4444]
[1729773152371,28.76880772,174.11,174.06,28.76880772]
[1729773152768,28.76880772,174.12,174.06,28.76880772]
[1729773153167,28.76880772,174.11,174.05,28.76880772]
[1729773153361,28.76880772,174.11,174.06,28.76880772]
[1729773153881,34.51220772,174.11,174.06,28.76880772]
[1729773154173,28.76880772,174.09,174.04,28.76880772]
[1729773154354,28.76880772,174.09,174.03,28.76880772]
[1729773155054,34.51200772,174.12,174.06,28.76880772]
[1729773155272,34.51170772,174.13,174.08,28.76880772]
[1729773156066,28.76880772,174.12,174.07,28.76880772]
[1729773156886,34.51170772,174.13,174.07,28.76880772]
[1729773157180,34.51170772,174.13,174.08,28.76880772]
[1729773157374,5.7429,174.13,174.08,28.76880772]
[1729773158068,5.7429,174.13,174.09,28.76880772]
[1729773158273,5.86799,174.14,174.09,28.76880772]
[1729773158575,5.86799,174.14,174.1,28.76880772]
[1729773159153,5.86799,174.14,174.09,28.76880772]
[1729773159473,34.63679772,174.14,174.09,28.76880772]
[1729773160766,34.63679772,174.14,174.08,28.76880772]
[1729773162080,28.76880772,174.12,174.07,28.76880772]
[1729773162381,28.76880772,174.1,174.04,28.76880772]
[1729773162782,28.76880772,174.1,174.05,28.76880772]
[1729773163086,29.14527772,174.13,174.08,28.76880772]
[1729773163267,34.51190772,174.12,174.07,28.76880772]
[1729773163467,34.51190772,174.12,174.06,28.76880772]
[1729773163983,34.88817772,174.13,174.07,28.76880772]
[1729773164182,28.76880772,174.11,174.06,28.76880772]
[1729773164487,6.11937,174.13,174.01,0.1]
[1729773164488,28.76880772,174.1,174.05,28.76880772]
[1729773164676,6.11937,174.13,174.01,0.1]
[1729773164677,14.38440386,174.08,174.01,0.1]
[1729773164875,6.11937,174.13,174.0,0.1]
[1729773164876,28.76880772,174.05,174.0,28.76880772]
[1729773165084,28.76880772,174.05,173.99,28.76880772]
[1729773165281,28.76880772,174.05,174.0,28.76880772]
[1729773165583,34.51410772,174.06,174.01,28.76880772]
[1729773167282,5.7453,174.06,174.01,28.76880772]
[1729773167687,5.7453,174.06,174.02,28.76880772]
[1729773167868,5.7441,174.1,174.05,28.76880772]
[1729773168066,28.76880772,174.07,174.01,28.76880772]
[1729773168267,28.76880772,174.06,174.01,28.76880772]
[1729773168563,28.76880772,174.06,174.0,28.76880772]
[1729773169494,34.51410772,174.06,174.01,28.76880772]
[1729773170871,34.51410772,174.06,174.0,28.76880772]
[1729773171079,5.7453,174.06,174.01,28.76880772]
[1729773171588,34.51410772,174.06,174.01,28.76880772]
[1729773173969,34.51410772,174.06,174.0,28.76880772]
[1729773174699,28.76880772,174.05,174.0,28.76880772]
[1729773175169,34.51440772,174.05,174.0,28.76880772]
[1729773175689,34.51440772,174.05,173.99,28.76880772]
[1729773176589,28.89429772,174.04,173.99,28.76880772]
[1729773176774,28.76880772,174.03,173.97,28.76880772]
[1729773176972,28.76880772,174.02,173.97,28.76880772]
[1729773177521,28.76880772,174.01,173.95,28.76880772]
[1729773177801,28.76880772,174.0,173.94,28.76880772]
[1729773178094,28.76880772,174.01,173.95,28.76880772]
[1729773178462,28.76880772,174.0,173.94,28.76880772]
[1729773178695,34.51610772,174.0,173.94,28.76880772]
[1729773179192,34.51610772,174.0,173.95,28.76880772]
[1729773179587,34.51610772,174.0,173.94,28.26880772]
[1729773179789,34.51610772,174.0,173.95,28.76880772]
[1729773181602,5.7473,174.0,173.95,28.76880772]
[1729773183201,5.7461,174.03,173.98,28.76880772]
[1729773183704,34.51490772,174.03,173.98,28.76880772]
[1729773184106,28.76880772,174.02,173.97,28.76880772]
[1729773184398,34.51530772,174.02,173.97,28.76880772]
[1729773184602,5.7448,174.07,174.01,28.76880772]
[1729773184793,34.51360772,174.07,174.02,28.76880772]
[1729773184997,0.12549,174.06,174.02,28.76880772]
[1729773185680,5.87079,174.06,174.02,28.76880772]
[1729773186813,6.5575,174.1,174.05,28.76880772]
[1729773187099,28.76880772,174.07,174.02,28.76880772]
[1729773187303,0.12549,174.06,174.01,28.76880772]
[1729773187688,0.12549,174.09,174.01,28.76880772]
[1729773188009,28.89429772,174.09,174.03,28.76880772]
[1729773188305,0.12549,174.06,174.03,28.76880772]
[1729773188683,0.25098,174.08,174.03,28.76880772]
[1729773188886,5.99548,174.08,174.03,28.76880772]
[1729773189087,0.12549,174.07,174.03,28.76880772]
[1729773189912,5.87029,174.07,174.03,28.76880772]
[1729773190783,5.87029,174.07,174.04,28.76880772]
[1729773190986,5.7437,174.11,174.06,28.76880772]
[1729773191192,5.7437,174.11,174.08,28.76880772]
[1729773193390,35.30140772,174.14,174.09,28.76880772]
[1729773193611,5.7431,174.13,174.09,28.76880772]
[1729773194113,0.12549,174.12,174.07,28.76880772]
[1729773194409,28.89429772,174.1,174.01,20.0]
[1729773194586,28.89429772,174.1,174.05,28.76880772]
[1729773194790,0.12549,174.1,174.06,28.76880772]
[1729773195022,28.76880772,174.12,174.07,28.76880772]
[1729773195313,0.25098,174.12,174.07,28.76880772]
[1729773195889,5.7434,174.11,174.07,28.76880772]
[1729773196686,0.12549,174.12,174.07,28.76880772]
[1729773196892,5.86869,174.12,174.07,28.76880772]
[1729773197212,0.37647,174.14,174.1,28.76880772]
[1729773197996,5.7428,174.13,174.09,28.76880772]
[1729773198200,5.7428,174.13,174.08,28.76880772]
[1729773198415,5.7428,174.13,174.09,28.76880772]
[1729773198592,5.7428,174.13,174.08,28.76880772]
[1729773199498,0.12549,174.11,174.06,28.76880772]
[1729773199705,28.76880772,174.1,174.05,28.76880772]
[1729773200601,28.76880772,174.1,174.0,52.64569172]
[1729773200602,28.76880772,174.1,174.0,38.26128786]
[1729773200801,34.51290772,174.09,174.04,28.76880772]
[1729773201204,28.76880772,174.07,174.02,28.76880772]
[1729773201403,28.76880772,174.06,174.01,28.76880772]
[1729773201700,28.76880772,174.07,174.01,28.76880772]
[1729773202408,28.76880772,174.06,174.01,28.76880772]
[1729773202616,28.89429772,174.08,174.02,28.76880772]
[1729773203008,34.51360772,174.07,174.02,28.76880772]
[1729773203206,28.76880772,174.03,173.95,22.0574]
[1729773203397,28.76880772,174.03,173.97,28.76880772]
[1729773203611,28.76880772,173.99,173.92,6.57658544]
[1729773203816,28.76880772,173.99,173.94,28.76880772]
[1729773204011,0.12549,174.02,173.95,28.76880772]
[1729773204323,28.76880772,174.01,173.95,28.76880772]
[1729773204711,34.51570772,174.01,173.95,28.76880772]
[1729773205331,34.51570772,174.01,173.96,28.76880772]
[1729773205902,5.7469,174.01,173.96,28.76880772]
[1729773206528,34.51570772,174.01,173.96,28.76880772]
[1729773207512,5.7469,174.01,173.96,28.76880772]
[1729773209935,34.51570772,174.01,173.96,28.76880772]
[1729773210927,14.362,174.07,173.97,28.76880772]
[1729773211224,28.89429772,174.05,173.99,28.76880772]
[1729773211743,28.76880772,174.03,173.97,28.76880772]
[1729773211905,28.76880772,174.01,173.96,28.76880772]
[1729773212308,28.76880772,174.02,173.96,28.76880772]
[1729773212505,0.12549,174.01,173.96,28.76880772]
[1729773212926,28.89429772,174.01,173.96,28.76880772]
[1729773213131,5.87229,174.01,173.96,28.76880772]
[1729773213827,34.64109772,174.01,173.96,28.76880772]
[1729773214202,34.64109772,174.01,173.95,28.76880772]
[1729773214402,34.64109772,174.01,173.92,6.57658544]
[1729773214403,14.38440386,173.99,173.94,14.38440386]
[1729773214604,28.76880772,173.99,173.94,28.76880772]
[1729773215726,28.76880772,173.99,173.91,21.9348]
[1729773215727,34.64109772,174.01,173.95,28.76880772]
[1729773216230,28.76880772,174.0,173.94,28.76880772]
[1729773216429,28.76880772,173.98,173.93,28.76880772]
[1729773216808,28.76880772,173.98,173.92,48.76880772]
[1729773217005,28.76880772,173.99,173.93,28.76880772]
[1729773217611,34.51620772,173.99,173.93,28.76880772]
[1729773217816,51.19949772,174.01,173.95,28.76880772]
[1729773218124,34.51590772,174.0,173.95,28.76880772]
[1729773218322,28.76880772,173.99,173.93,28.76880772]
[1729773218511,5.7471,174.0,173.92,20.0]
[1729773218512,34.51590772,174.0,173.94,28.76880772]
[1729773219221,28.89429772,173.99,173.93,28.76880772]
[1729773219532,28.89429772,173.99,173.94,28.76880772]
[1729773219729,0.12549,173.99,173.94,28.76880772]
[1729773219929,5.87289,173.99,173.94,28.76880772]
[1729773223538,28.76880772,174.0,173.95,28.76880772]
[1729773223740,5.7472,174.0,173.96,28.76880772]
[1729773225238,34.51600772,174.0,173.95,28.76880772]
[1729773228342,34.51600772,174.0,173.94,28.76880772]
[1729773228655,0.12549,173.94,173.88,5.96631656]
[1729773228822,28.76880772,173.91,173.86,28.76880772]
[1729773229148,0.12549,173.94,173.89,28.76880772]
[1729773229149,28.89429772,173.94,173.89,28.76880772]
[1729773229331,28.89429772,173.94,173.88,28.76880772]
[1729773229531,28.76880772,173.93,173.88,28.76880772]
[1729773230065,28.76880772,173.93,173.87,28.76880772]
[1729773230424,28.76880772,173.92,173.87,28.76880772]
[1729773231728,28.76880772,173.93,173.87,28.76880772]
[1729773233151,28.76880772,173.95,173.89,28.76880772]
[1729773233324,28.76880772,173.95,173.9,28.76880772]
[1729773234235,28.76880772,173.94,173.89,28.76880772]
[1729773235054,28.76880772,173.94,173.88,28.76880772]
[1729773236930,28.76880772,173.94,173.84,6.67955604]
[1729773236931,28.76880772,173.92,173.84,6.57955604]
[1729773237248,28.76880772,173.89,173.84,35.34836376]
[1729773237631,28.76880772,173.88,173.84,6.57955604]
[1729773238233,28.76880772,173.89,173.84,6.57955604]
[1729773238833,28.76880772,173.89,173.83,28.76880772]
[1729773239428,28.76880772,173.88,173.82,43.77630772]
[1729773239654,28.76880772,173.88,173.79,0.1]
[1729773239655,28.89429772,173.86,173.81,28.76880772]
[1729773239835,28.76880772,173.83,173.78,0.6192969]
[1729773240037,28.76880772,173.84,173.78,29.38810462]
[1729773240241,21.8073,173.9,173.83,14.38440386]
[1729773240431,56.32660772,173.9,173.85,28.76880772]
[1729773240638,28.89429772,173.89,173.83,28.76880772]
[1729773241353,28.89429772,173.87,173.81,28.76880772]
[1729773241537,28.76880772,173.86,173.81,28.76880772]
[1729773242147,28.89429772,173.87,173.81,28.76880772]
[1729773243334,34.64589772,173.87,173.81,28.76880772]
[1729773243847,28.76880772,173.86,173.81,28.76880772]
[1729773244158,28.76880772,173.86,173.8,28.76880772]
[1729773244533,21.8073,173.9,173.78,29.38810462]
[1729773244534,28.76880772,173.84,173.78,29.38810462]
[1729773244734,28.76880772,173.83,173.78,29.38810462]
[1729773245042,0.12549,173.85,173.78,0.6192969]
[1729773245043,28.76880772,173.8,173.78,0.6192969]
[1729773245355,28.89429772,173.84,173.79,28.76880772]
[1729773245563,28.89429772,173.84,173.78,0.6192969]
[1729773245564,28.76880772,173.83,173.78,0.6192969]
[1729773245941,28.89429772,173.82,173.78,0.6192969]
[1729773246757,14.38440386,173.81,173.78,0.6192969]
[1729773246955,28.76880772,173.81,173.78,0.6192969]
[1729773247938,34.64739772,173.82,173.78,0.6192969]
[1729773248355,0.12549,173.82,173.78,0.6192969]
[1729773248555,28.89429772,173.82,173.78,0.6192969]
[1729773248862,34.64759772,173.82,173.78,0.6192969]
[1729773249070,28.76880772,173.8,173.78,0.6192969]
[1729773249369,29.14527772,173.79,173.78,0.6192969]
[1729773249665,49.14527772,173.79,173.78,0.6192969]
[1729773250243,34.89927772,173.79,173.78,0.6192969]
[1729773250757,5.7534,173.81,173.78,0.6192969]
[1729773250963,20.9424,173.82,173.78,0.6192969]
[1729773251269,15.1893,173.82,173.78,29.38810462]
[1729773251449,40.68710772,173.83,173.78,0.6192969]
[1729773251654,40.68710772,173.83,173.78,29.38810462]
[1729773251857,15.2231,173.86,173.81,28.76880772]
[1729773252057,40.65470772,173.88,173.83,28.76880772]
[1729773252361,40.65470772,173.88,173.78,0.6192969]
[1729773252362,28.76880772,173.86,173.81,28.76880772]
[1729773252666,0.12549,173.85,173.8,28.76880772]
[1729773252964,28.76880772,173.86,173.81,28.76880772]
[1729773253464,0.12549,173.86,173.81,28.76880772]
[1729773253868,0.12549,173.86,173.83,28.76880772]
[1729773254164,0.12549,173.86,173.82,28.76880772]
[1729773255766,5.87719,173.86,173.82,28.76880772]
[1729773255949,5.87719,173.86,173.81,28.76880772]
[1729773256550,0.12549,173.84,173.8,28.76880772]
[1729773256752,28.89429772,173.84,173.79,28.76880772]
[1729773256963,5.87799,173.84,173.79,28.76880772]
[1729773257472,28.89429772,173.82,173.78,0.6192969]
[1729773257878,0.12549,173.82,173.78,29.38810462]
[1729773261076,5.87849,173.82,173.78,29.38810462]
[1729773261371,5.87849,173.82,173.78,0.6192969]
[1729773261575,5.87849,173.82,173.79,28.76880772]
[1729773263453,5.87849,173.82,173.78,29.38810462]
[1729773264373,0.12549,173.8,173.78,0.6192969]
[1729773266090,5.87929,173.8,173.78,0.6192969]
[1729773267676,43.14950772,173.85,173.79,28.76880772]
[1729773267872,29.780264,173.84,173.79,28.76880772]
[1729773268064,0.12549,173.83,173.78,29.38810462]
[1729773268676,28.89429772,173.83,173.78,29.38810462]
[1729773268884,29.01978772,173.82,173.78,0.6192969]
[1729773269361,29.14527772,173.79,173.78,0.6192969]
[1729773269557,0.12549,173.79,173.78,0.6192969]
[1729773270375,0.37647,173.8,173.78,0.6192969]
[1729773270569,6.13017,173.8,173.78,0.6192969]
[1729773271060,28.76880772,173.79,173.78,0.6192969]
[1729773271266,52.92216172,173.79,173.78,0.6192969]
[1729773271565,72.92216172,173.79,173.78,0.6192969]
[1729773271875,78.67616172,173.79,173.78,0.6192969]
[1729773276471,58.67616172,173.79,173.78,0.6192969]
[1729773276660,29.907354,173.79,173.78,0.6192969]
[1729773277282,58.67616172,173.79,173.78,0.6192969]
[1729773278075,29.907354,173.79,173.78,0.6192969]
[1729773278588,58.67616172,173.79,173.78,0.6192969]
[1729773279866,34.89927772,173.79,173.78,0.6192969]
[1729773280068,6.13047,173.79,173.78,0.6192969]
[1729773280278,0.37647,173.79,173.78,0.6192969]
[1729773280681,0.12549,173.79,173.78,0.6192969]
[1729773283188,6.13047,173.79,173.78,0.6192969]
[1729773285372,5.753,173.82,173.78,0.6192969]
[1729773286876,0.12549,173.8,173.78,0.6192969]
[1729773287766,5.753,173.83,173.79,28.76880772]
[1729773288062,5.753,173.83,173.8,28.76880772]
[1729773288262,0.12549,173.82,173.8,28.76880772]
[1729773288879,5.87789,173.84,173.8,28.76880772]
[1729773289079,5.7524,173.84,173.8,28.76880772]
[1729773289467,0.12549,173.83,173.8,28.76880772]
[1729773289664,14.3773,173.89,173.78,0.6192969]
[1729773289665,14.38440386,173.87,173.81,28.76880772]
[1729773289899,5.7504,173.9,173.86,28.76880772]
[1729773290175,5.7491,173.94,173.89,28.76880772]
[1729773290366,20.112,174.03,173.93,28.76880772]
[1729773290566,20.112,174.03,173.95,28.76880772]
[1729773290567,28.76880772,174.0,173.95,28.76880772]
[1729773290780,0.12549,173.99,173.95,28.76880772]
[1729773290985,5.7477,173.98,173.95,28.76880772]
[1729773291194,0.12549,173.97,173.92,28.76880772]
[1729773291493,28.76880772,173.94,173.89,28.76880772]
[1729773291692,5.7477,173.98,173.89,28.76880772]
[1729773291693,28.76880772,173.95,173.89,28.76880772]
[1729773291990,0.12549,173.94,173.89,28.76880772]
[1729773292191,0.12549,173.94,173.9,28.76880772]
[1729773292574,5.7492,173.94,173.9,28.76880772]
[1729773292790,0.12549,173.92,173.9,28.76880772]
[1729773293087,0.12549,173.92,173.88,28.76880772]
[1729773293590,0.12549,173.92,173.89,28.76880772]
[1729773294187,0.12549,173.92,173.9,28.76880772]
[1729773295072,0.12549,173.92,173.89,28.76880772]
[1729773295274,22.0378,174.02,173.9,28.76880772]
[1729773295478,22.0378,174.02,173.85,15.8314]
[1729773295479,28.76880772,173.99,173.93,28.76880772]
[1729773295989,0.12549,173.98,173.93,28.76880772]
[1729773296285,0.12549,173.98,173.94,28.76880772]
[1729773296491,0.12549,173.98,173.93,28.76880772]
[1729773296703,0.25098,173.98,173.93,28.76880772]
[1729773296993,0.37647,173.98,173.93,28.76880772]
[1729773297980,0.37647,173.98,173.94,28.76880772]
[1729773298291,0.25098,173.98,173.95,28.76880772]
[1729773298497,0.25098,173.98,173.96,28.76880772]
[1729773298874,0.25098,173.98,173.9,28.76880772]
[1729773298875,0.25098,173.98,173.95,28.76880772]
[1729773299979,24.153354,174.01,173.96,28.76880772]
[1729773300301,0.37647,174.01,173.97,28.76880772]
[1729773300794,0.37647,173.99,173.94,28.76880772]